bitfinex/quotes_BTCUSD_20241206
["timestamp","ask_amount","ask_price","bid_price","bid_amount"]
[1733446444693,0.03,97350.0,97343.0,0.10605872]
[1733446445116,0.03,97350.0,97343.0,0.10503154]
[1733446445517,0.001,97359.0,97343.0,0.10503154]
[1733446445518,0.03,97349.0,97343.0,0.10503154]
[1733446446600,0.03,97348.0,97344.0,0.12832719]
[1733446446806,0.03,97348.0,97345.0,0.12988031]
[1733446447009,0.03,97348.0,97346.0,0.0010271]
[1733446447174,0.03,97348.0,97347.0,0.10503154]
[1733446447636,0.03,97348.0,97347.0,0.10605865]
[1733446447843,0.03,97348.0,97347.0,0.10503154]
[1733446448047,0.03,97348.0,97344.0,0.0799]
[1733446448377,0.03,97348.0,97344.0,0.08940289]
[1733446448584,0.03,97347.0,97344.0,0.08940289]
[1733446449015,0.03,97347.0,97340.0,0.0017288]
[1733446449827,0.03,97346.0,97340.0,0.0017288]
[1733446450675,0.03,97345.0,97340.0,0.0017288]
[1733446451745,0.03,97344.0,97340.0,0.0017288]
[1733446452842,0.03,97343.0,97340.0,0.0017288]
[1733446453895,0.03,97342.0,97340.0,0.0017288]
[1733446454949,0.03,97341.0,97340.0,0.0017288]
[1733446460994,0.12179036,97341.0,97340.0,0.0017288]
[1733446461222,0.03,97341.0,97340.0,0.0017288]
[1733446462288,0.03,97341.0,97340.0,0.10676034]
[1733446462624,0.03,97341.0,97340.0,0.11743637]
[1733446464751,0.03,97341.0,97340.0,0.0017288]
[1733446465389,0.16783725,97341.0,97340.0,0.0017288]
[1733446465613,0.36969647,97341.0,97340.0,0.0017288]
[1733446466070,0.36969778,97341.0,97340.0,0.0017288]
[1733446467983,0.39293107,97341.0,97310.0,0.0017272]
[1733446468201,0.03,97322.0,97311.0,0.10503154]
[1733446468434,0.03,97322.0,97312.0,0.01067587]
[1733446468679,0.09208831,97323.0,97313.0,0.10503154]
[1733446468680,0.03,97320.0,97313.0,0.10503154]
[1733446468920,0.03,97318.0,97310.0,0.0017272]
[1733446469124,0.03,97314.0,97310.0,0.0017272]
[1733446469335,0.03,97313.0,97310.0,0.0017272]
[1733446470364,0.23022078,97323.0,97310.0,0.0017272]
[1733446470365,0.03,97312.0,97310.0,0.0017272]
[1733446471455,0.03,97311.0,97310.0,0.0017272]
[1733446471891,0.15803154,97311.0,97310.0,0.0017272]
[1733446472099,0.49774183,97311.0,97310.0,0.0017272]
[1733446472319,0.47474183,97311.0,97310.0,0.0017272]
[1733446472761,0.47455914,97311.0,97310.0,0.0017272]
[1733446472977,0.75049268,97311.0,97310.0,0.0017272]
[1733446473196,0.3695276,97311.0,97310.0,0.0017272]
[1733446474699,0.47455914,97311.0,97310.0,0.0017272]
[1733446475823,0.47455914,97311.0,97269.0,0.012855]
[1733446476030,0.03,97296.0,97269.0,0.012855]
[1733446476981,0.03,97296.0,97275.0,0.01274278]
[1733446477225,0.03,97296.0,97269.0,0.012855]
[1733446477226,0.03,97295.0,97276.0,0.00102788]
[1733446477434,0.03,97295.0,97270.0,0.00102788]
[1733446477829,0.03,97295.0,97274.0,0.01248936]
[1733446478053,0.03,97295.0,97275.0,0.00102783]
[1733446478252,0.03,97294.0,97275.0,0.00102783]
[1733446479232,0.03,97293.0,97275.0,0.00102783]
[1733446480165,0.03,97292.0,97275.0,0.00102783]
[1733446481242,0.03,97291.0,97275.0,0.00102783]
[1733446483351,0.03,97312.0,97275.0,0.00102783]
[1733446483632,0.03,97312.0,97291.0,0.10503154]
[1733446483862,0.03,97312.0,97292.0,0.01170354]
[1733446483863,0.001,97309.0,97292.0,0.01170354]
[1733446484107,0.001,97309.0,97293.0,0.10503154]
[1733446484312,0.001,97309.0,97294.0,0.00102767]
[1733446484516,0.001,97309.0,97295.0,0.10503154]
[1733446484720,0.001,97309.0,97296.0,0.00102767]
[1733446484936,0.001,97309.0,97297.0,0.10503154]
[1733446485168,0.001,97309.0,97298.0,0.01163359]
[1733446485392,0.001,97309.0,97299.0,0.10503154]
[1733446485640,0.001,97309.0,97300.0,0.00102761]
[1733446485866,0.001,97309.0,97290.0,0.01396376]
[1733446485867,0.001,97309.0,97301.0,0.10605915]
[1733446486287,0.03,97308.0,97301.0,0.10605915]
[1733446486495,0.03,97308.0,97302.0,0.01060592]
[1733446486726,0.03,97307.0,97303.0,0.10605908]
[1733446487182,0.03,97307.0,97305.0,0.0452]
[1733446487404,0.03,97307.0,97306.0,0.10503154]
[1733446487834,0.053,97307.0,97306.0,0.10503154]
[1733446488321,0.03,97307.0,97306.0,0.10503154]
[1733446488540,0.001,97309.0,97306.0,0.10503154]
[1733446488749,0.03,97307.0,97306.0,0.12796469]
[1733446489185,0.03,97307.0,97306.0,0.10503154]
[1733446489392,0.03,97307.0,97304.0,0.0791]
[1733446489644,0.001,97309.0,97296.0,0.0791]
[1733446489645,0.03,97306.0,97296.0,0.0791]
[1733446489855,0.03,97306.0,97297.0,0.11763426]
[1733446490735,0.03,97305.0,97297.0,0.11763426]
[1733446491564,0.03,97304.0,97297.0,0.11763426]
[1733446491774,0.03,97304.0,97296.0,0.0791]
[1733446492665,0.001,97309.0,97296.0,0.0791]
[1733446492666,0.03,97303.0,97296.0,0.0791]
[1733446493563,0.03,97303.0,97290.0,0.0017272]
[1733446493784,0.001,97309.0,97291.0,0.10503154]
[1733446493785,0.03,97302.0,97291.0,0.10503154]
[1733446493985,0.03,97302.0,97291.0,0.12361741]
[1733446494204,0.03,97302.0,97292.0,0.00102773]
[1733446494417,0.03,97302.0,97293.0,0.10503154]
[1733446494837,0.03,97301.0,97293.0,0.10503154]
[1733446495035,0.03,97301.0,97293.0,0.11891521]
[1733446495685,0.03,97300.0,97293.0,0.10503154]
[1733446496763,0.001,97309.0,97290.0,0.01419151]
[1733446496764,0.03,97299.0,97290.0,0.01419151]
[1733446497175,0.03,97297.0,97290.0,0.01419151]
[1733446497428,0.023,97296.0,97290.0,0.0017272]
[1733446497639,0.03,97295.0,97290.0,0.0017272]
[1733446497844,0.03,97294.0,97291.0,0.00808272]
[1733446498223,0.03,97294.0,97293.0,0.1243]
[1733446498450,0.03,97294.0,97293.0,0.22933154]
[1733446499938,0.03,97294.0,97293.0,0.1243]
[1733446500153,0.03,97294.0,97293.0,0.0791]
[1733446505143,0.03,97294.0,97293.0,0.18515931]
[1733446505360,0.03,97294.0,97293.0,0.20836796]
[1733446505570,0.03,97294.0,97293.0,0.20734019]
[1733446506937,0.03,97294.0,97293.0,0.20754019]
[1733446507227,0.03,97294.0,97293.0,0.25574019]
[1733446507644,0.03,97317.0,97316.0,0.03]
[1733446507843,0.03,97317.0,97316.0,0.1093]
[1733446507970,0.03,97317.0,97316.0,0.21535906]
[1733446508170,0.03,97317.0,97316.0,0.21433154]
[1733446508397,0.03,97317.0,97316.0,0.24058469]
[1733446509176,0.0123765,97317.0,97316.0,0.24058469]
[1733446509403,0.0083765,97317.0,97316.0,0.30131828]
[1733446509633,0.001,97339.0,97321.0,0.03]
[1733446509849,0.001,97349.0,97317.0,0.1275]
[1733446509850,0.09178047,97366.0,97343.0,0.03]
[1733446510071,0.001,97369.0,97356.0,0.13503154]
[1733446510270,0.001,97369.0,97322.0,0.03069561]
[1733446510271,0.001,97369.0,97358.0,0.13503154]
[1733446510498,0.001,97369.0,97365.0,0.03]
[1733446510718,0.001,97369.0,97367.0,0.03]
[1733446510943,0.001,97369.0,97368.0,0.13605833]
[1733446511220,0.001,97369.0,97368.0,0.03]
[1733446511667,0.001,97369.0,97368.0,0.13503154]
[1733446511865,0.001,97369.0,97368.0,0.13605857]
[1733446513634,0.001,97389.0,97387.0,0.03]
[1733446514083,0.001,97389.0,97369.0,0.10605832]
[1733446514084,0.001,97389.0,97388.0,0.13503154]
[1733446514311,0.001,97389.0,97388.0,0.14853469]
[1733446515834,0.024,97389.0,97388.0,0.03]
[1733446516487,0.21173154,97389.0,97388.0,0.01732247]
[1733446516722,0.023,97384.0,97333.0,0.0778]
[1733446516911,0.023,97382.0,97334.0,0.11863871]
[1733446517161,0.023,97380.0,97334.0,0.11761154]
[1733446517391,0.023,97376.0,97335.0,0.03102727]
[1733446517631,0.10503154,97375.0,97337.0,0.03]
[1733446517865,0.10503154,97375.0,97336.0,0.13247542]
[1733446517866,0.023,97374.0,97339.0,0.03]
[1733446518068,0.10503154,97373.0,97341.0,0.03]
[1733446518244,0.023,97372.0,97341.0,0.03]
[1733446518476,0.10503154,97371.0,97341.0,0.03]
[1733446518680,0.10503154,97371.0,97343.0,0.03]
[1733446518681,0.023,97370.0,97343.0,0.03]
[1733446518881,0.023,97368.0,97343.0,0.03]
[1733446519089,0.023,97367.0,97343.0,0.03]
[1733446519664,0.023,97365.0,97343.0,0.03]
[1733446519838,0.023,97363.0,97345.0,0.03]
[1733446520047,0.10503154,97362.0,97345.0,0.03]
[1733446520250,0.023,97361.0,97345.0,0.03]
[1733446520574,0.023,97359.0,97345.0,0.03]
[1733446520926,0.023,97359.0,97339.0,0.03]
[1733446521559,0.023,97365.0,97339.0,0.03]
[1733446521948,0.023,97365.0,97340.0,0.03]
[1733446523070,0.023,97365.0,97341.0,0.03]
[1733446523220,0.023,97374.0,97343.0,0.03]
[1733446523423,0.023,97372.0,97343.0,0.13503154]
[1733446523628,0.09140246,97383.0,97345.0,0.03]
[1733446523833,0.196434,97382.0,97347.0,0.03]
[1733446524026,0.196434,97382.0,97349.0,0.03]
[1733446524027,0.10503154,97382.0,97349.0,0.03]
[1733446524230,0.00307895,97375.0,97349.0,0.03]
[1733446524438,0.10503154,97382.0,97348.0,0.028]
[1733446524439,0.10503154,97382.0,97351.0,0.03]
[1733446524635,0.0008641,97410.0,97353.0,0.03]
[1733446524797,0.00311002,97387.0,97356.0,0.03]
[1733446525219,0.00311002,97387.0,97358.0,0.03]
[1733446525425,0.00311002,97387.0,97360.0,0.03]
[1733446525580,0.00311002,97387.0,97360.0,0.13503154]
[1733446527109,0.0359,97396.0,97362.0,0.03]
[1733446527270,0.14093154,97396.0,97364.0,0.03]
[1733446527467,0.00306044,97392.0,97366.0,0.03]
[1733446527676,0.10503154,97391.0,97366.0,0.03]
[1733446528329,0.023,97390.0,97366.0,0.03]
[1733446528502,0.10503154,97389.0,97367.0,0.03]
[1733446528706,0.023,97388.0,97367.0,0.03]
[1733446528935,0.023,97386.0,97367.0,0.03]
[1733446529152,0.10503154,97385.0,97367.0,0.03]
[1733446529368,0.00306044,97392.0,97367.0,0.03]
[1733446529518,0.00306044,97392.0,97368.0,0.03]
[1733446529519,0.12799154,97391.0,97368.0,0.03]
[1733446530575,0.12799154,97391.0,97369.0,0.03]
[1733446530576,0.0008642,97390.0,97369.0,0.03]
[1733446530811,0.10589574,97390.0,97369.0,0.03]
[1733446531326,0.0008642,97390.0,97373.0,0.03]
[1733446531471,0.0008642,97390.0,97375.0,0.03]
[1733446531686,0.0008642,97390.0,97377.0,0.03]
[1733446531892,0.0008642,97390.0,97379.0,0.03]
[1733446532236,0.0008642,97390.0,97381.0,0.03]
[1733446534389,0.0008642,97390.0,97382.0,0.03]
[1733446535311,0.0008642,97390.0,97383.0,0.03]
[1733446536345,0.0008642,97390.0,97384.0,0.03]
[1733446536782,0.0008642,97390.0,97389.0,0.1107]
[1733446539606,0.0008642,97390.0,97389.0,0.03]
[1733446543680,0.0008642,97390.0,97389.0,0.058]
[1733446544028,0.0008642,97390.0,97389.0,0.1361]
[1733446546867,0.0008642,97390.0,97389.0,0.80208901]
[1733446547035,0.0008642,97390.0,97389.0,0.80106223]
[1733446547848,0.001,97399.0,97398.0,0.6562]
[1733446548018,0.001,97399.0,97398.0,0.76123154]
[1733446548258,0.001,97419.0,97398.0,0.76123154]
[1733446548459,0.001,97419.0,97390.0,0.01596512]
[1733446548460,0.001,97419.0,97418.0,0.6562]
[1733446548670,0.001,97419.0,97418.0,0.78923154]
[1733446550036,0.001,97419.0,97418.0,0.82343313]
[1733446550624,0.001,97419.0,97418.0,0.49133154]
[1733446550808,0.001,97419.0,97418.0,0.24133154]
[1733446551239,0.001,97419.0,97418.0,0.49133154]
[1733446551455,0.001,97419.0,97418.0,0.74133154]
[1733446552499,0.001,97419.0,97418.0,0.75334337]
[1733446553466,0.0008632,97440.0,97428.0,0.28]
[1733446553667,0.0008632,97440.0,97428.0,0.38503154]
[1733446556026,0.0008632,97440.0,97428.0,0.03]
[1733446556379,0.0008632,97440.0,97428.0,0.28]
[1733446556792,0.0008632,97440.0,97428.0,0.29215305]
[1733446557002,0.0008632,97440.0,97428.0,0.32015305]
[1733446557633,0.0008632,97440.0,97428.0,0.42518459]
[1733446557895,0.0008632,97440.0,97428.0,0.80138459]
[1733446558058,0.0008637,97460.0,97455.0,0.03]
[1733446558428,0.0008637,97460.0,97457.0,0.03]
[1733446559330,0.0008637,97460.0,97458.0,0.03]
[1733446559540,0.024,97459.0,97458.0,0.03]
[1733446559741,0.024,97459.0,97445.0,0.01225223]
[1733446559983,0.024,97459.0,97431.0,0.25]
[1733446560117,0.024,97459.0,97433.0,0.01177793]
[1733446560325,0.024,97459.0,97434.0,0.02867197]
[1733446561493,0.0519,97457.0,97434.0,0.02867197]
[1733446561691,0.14093154,97456.0,97430.0,0.01226671]
[1733446561900,0.023,97455.0,97430.0,0.01226671]
[1733446562116,0.10503154,97454.0,97429.0,0.0783]
[1733446562328,0.10503154,97454.0,97430.0,0.00783]
[1733446562329,0.023,97453.0,97430.0,0.00783]
[1733446562534,0.10503154,97452.0,97430.0,0.00783]
[1733446562757,0.023,97451.0,97429.0,0.01235844]
[1733446563202,0.023,97451.0,97418.0,0.3283]
[1733446563610,0.023,97449.0,97418.0,0.3283]
[1733446563838,0.023,97447.0,97418.0,0.3283]
[1733446564053,0.023,97445.0,97418.0,0.3283]
[1733446564251,0.023,97443.0,97418.0,0.0902165]
[1733446564468,0.023,97441.0,97418.0,0.3402165]
[1733446564671,0.12803154,97441.0,97418.0,0.3402165]
[1733446564847,0.12803154,97441.0,97419.0,0.25]
[1733446566343,0.12803154,97441.0,97418.0,0.0783]
[1733446566538,0.12120331,97430.0,97396.0,0.0783]
[1733446566782,0.13393154,97440.0,97387.0,0.0783]
[1733446566783,0.023,97419.0,97387.0,0.0783]
[1733446567008,0.023,97419.0,97379.0,0.25]
[1733446567009,0.023,97409.0,97379.0,0.0783]
[1733446567242,0.12120331,97410.0,97381.0,0.02517294]
[1733446567243,0.023,97407.0,97381.0,0.02517294]
[1733446567480,0.023,97405.0,97373.0,0.0479]
[1733446567705,0.023,97406.0,97380.0,0.2517294]
[1733446567922,0.023,97415.0,97381.0,0.02637352]
[1733446568147,0.023,97413.0,97381.0,0.02637352]
[1733446568373,0.023,97411.0,97382.0,0.0175916]
[1733446568583,0.023,97409.0,97383.0,0.02637352]
[1733446568792,0.023,97407.0,97383.0,0.02637352]
[1733446569005,0.12803154,97407.0,97383.0,0.02637352]
[1733446569228,0.12803154,97407.0,97384.0,0.0175916]
[1733446569916,0.10503154,97406.0,97384.0,0.0175916]
[1733446570141,0.10503154,97406.0,97380.0,0.0017294]
[1733446570142,0.023,97405.0,97380.0,0.0017294]
[1733446570354,0.10503154,97406.0,97380.0,0.0017294]
[1733446570355,0.0912676,97398.0,97380.0,0.0017294]
[1733446570607,0.023,97389.0,97380.0,0.0017294]
[1733446570829,0.023,97384.0,97368.0,0.01208591]
[1733446571047,0.023,97384.0,97357.0,0.25]
[1733446571261,0.023,97387.0,97361.0,0.02517284]
[1733446571483,0.11447791,97384.0,97361.0,0.02517284]
[1733446571699,0.023,97382.0,97360.0,0.01393869]
[1733446571925,0.12803154,97382.0,97360.0,0.0017284]
[1733446573530,0.023,97380.0,97360.0,0.0017284]
[1733446573749,0.023,97378.0,97360.0,0.0017284]
[1733446573967,0.023,97373.0,97360.0,0.0017284]
[1733446574169,0.023,97371.0,97360.0,0.0017284]
[1733446574400,0.12803154,97371.0,97360.0,0.0017284]
[1733446574605,0.09147791,97375.0,97360.0,0.0017284]
[1733446574852,0.023,97381.0,97361.0,0.10087284]
[1733446575072,0.22869479,97390.0,97361.0,0.10087284]
[1733446575073,0.023,97392.0,97361.0,0.10087284]
[1733446575300,0.023,97390.0,97362.0,0.01879228]
[1733446575521,0.10503154,97390.0,97362.0,0.01879228]
[1733446575728,0.09147791,97394.0,97373.0,0.2987]
[1733446575954,0.27443375,97410.0,97373.0,0.2987]
[1733446575955,0.09147791,97408.0,97381.0,0.25]
[1733446576186,0.09147791,97416.0,97388.0,0.25]
[1733446576405,0.19650945,97422.0,97389.0,0.12382382]
[1733446576619,0.09147791,97420.0,97389.0,0.12382382]
[1733446576835,0.10503154,97420.0,97390.0,0.02517284]
[1733446577043,0.10503154,97420.0,97390.0,0.13020438]
[1733446577255,0.023,97419.0,97390.0,0.13020438]
[1733446577900,0.10503154,97420.0,97399.0,0.25]
[1733446578156,0.10503154,97420.0,97401.0,0.25]
[1733446578360,0.09147791,97432.0,97402.0,0.0491]
[1733446578567,0.10503154,97431.0,97403.0,0.02517284]
[1733446579067,0.19650945,97431.0,97403.0,0.02517284]
[1733446579262,0.19650945,97431.0,97404.0,0.01879228]
[1733446579704,0.09147791,97431.0,97405.0,0.35503154]
[1733446579911,0.09147791,97434.0,97405.0,0.35503154]
[1733446580122,0.001,97429.0,97405.0,0.35503154]
[1733446580324,0.001,97429.0,97407.0,0.25]
[1733446582687,0.001,97429.0,97412.0,0.25]
[1733446584011,0.001,97429.0,97409.0,0.25]
[1733446584233,0.001,97429.0,97406.0,0.27517284]
[1733446584449,0.001,97429.0,97412.0,0.25]
[1733446584845,0.001,97429.0,97407.0,0.01879228]
[1733446585455,0.001,97429.0,97409.0,0.25]
[1733446586007,0.001,97429.0,97407.0,0.01879228]
[1733446586207,0.001,97429.0,97409.0,0.25]
[1733446586417,0.001,97429.0,97412.0,0.25]
[1733446586833,0.001,97429.0,97412.0,0.05]
[1733446587234,0.001,97429.0,97408.0,0.05]
[1733446587460,0.001,97429.0,97412.0,0.15503154]
[1733446587813,0.001,97429.0,97404.0,0.01474896]
[1733446587814,0.001,97429.0,97421.0,0.25]
[1733446588016,0.001,97429.0,97424.0,0.05]
[1733446588237,0.001,97429.0,97425.0,0.0491]
[1733446588430,0.001,97429.0,97428.0,0.25]
[1733446588698,0.001,97429.0,97428.0,0.40503154]
[1733446589664,0.001,97429.0,97425.0,0.0491]
[1733446590054,0.001,97429.0,97419.0,0.05]
[1733446590486,0.001,97429.0,97418.0,0.08]
[1733446592661,0.001,97429.0,97419.0,0.35503154]
[1733446593093,0.0009038,97439.0,97419.0,0.35503154]
[1733446593304,0.0009038,97439.0,97418.0,0.08]
[1733446596062,0.0009038,97439.0,97428.0,0.05]
[1733446596285,0.0009038,97439.0,97428.0,0.40503154]
[1733446596868,0.0009038,97439.0,97430.0,0.05]
[1733446597485,0.0009038,97439.0,97414.0,0.03414677]
[1733446597486,0.0009038,97439.0,97438.0,0.3]
[1733446597834,0.0009038,97439.0,97438.0,0.56645677]
[1733446598192,0.001,97449.0,97448.0,0.1305]
[1733446598395,0.001,97449.0,97448.0,0.24858154]
[1733446598804,0.001,97449.0,97448.0,0.49858154]
[1733446599581,0.001,97449.0,97448.0,0.54448154]
[1733446600433,0.001,97449.0,97448.0,0.55965359]
[1733446605379,0.001,97459.0,97458.0,0.3805]
[1733446605542,0.001,97459.0,97458.0,0.53143154]
[1733446609713,0.001,97459.0,97458.0,0.546643]
[1733446611029,0.001,97459.0,97458.0,0.496643]
[1733446611242,0.001,97459.0,97458.0,0.53143154]
[1733446611474,0.001,97459.0,97458.0,0.54448154]
[1733446612994,0.001,97459.0,97454.0,0.25]
[1733446613208,0.024,97459.0,97451.0,0.05]
[1733446613416,0.024,97459.0,97451.0,0.0674]
[1733446613864,0.024,97459.0,97451.0,0.0174]
[1733446614090,0.024,97459.0,97439.0,0.0781]
[1733446614091,0.024,97459.0,97447.0,0.05]
[1733446615376,0.001,97459.0,97456.0,0.05]
[1733446615600,0.001,97459.0,97458.0,0.3]
[1733446615804,0.001,97459.0,97458.0,0.40503154]
[1733446619046,0.001,97459.0,97458.0,0.41994713]
[1733446619479,0.001,97459.0,97458.0,0.40503154]
[1733446619653,0.001,97459.0,97458.0,0.05]
[1733446622804,0.001,97459.0,97458.0,0.40605758]
[1733446623005,0.001,97459.0,97458.0,0.48313154]
[1733446623702,0.001,97459.0,97458.0,0.23313154]
[1733446623849,0.001,97459.0,97458.0,0.05]
[1733446624051,0.001,97469.0,97458.0,0.05]
[1733446624052,0.001,97469.0,97460.0,0.0052443]
[1733446624361,0.024,97469.0,97460.0,0.01076873]
[1733446627208,0.08923127,97459.0,97458.0,0.05]
[1733446627846,0.08923127,97459.0,97456.0,0.05]
[1733446628074,0.08923127,97459.0,97450.0,0.0017284]
[1733446628075,0.023,97458.0,97450.0,0.0017284]
[1733446628292,0.11432256,97458.0,97450.0,0.0017284]
[1733446628508,0.09082256,97454.0,97450.0,0.0017284]
[1733446628654,0.023,97453.0,97450.0,0.0017284]
[1733446629287,0.15998385,97456.0,97450.0,0.0017284]
[1733446629488,0.13698385,97454.0,97450.0,0.0017284]
[1733446629687,0.023,97453.0,97450.0,0.0017284]
[1733446630279,0.22621512,97459.0,97450.0,0.0017284]
[1733446630508,0.08923127,97459.0,97450.0,0.0017284]
[1733446630911,0.10503154,97458.0,97450.0,0.0017284]
[1733446631081,0.0317,97456.0,97450.0,0.0017284]
[1733446631310,0.13698385,97454.0,97450.0,0.0017284]
[1733446631728,0.023,97452.0,97450.0,0.0017284]
[1733446632076,0.15998385,97452.0,97450.0,0.0017284]
[1733446632650,0.30821366,97474.0,97451.0,0.124]
[1733446632858,0.001,97489.0,97487.0,0.05]
[1733446633050,0.001,97489.0,97478.0,0.05]
[1733446633259,0.001,97489.0,97459.0,0.10503154]
[1733446633260,0.001,97489.0,97476.0,0.3]
[1733446633563,0.001,97489.0,97471.0,0.25]
[1733446633793,0.001,97489.0,97459.0,0.10503154]
[1733446633991,0.001,97489.0,97452.0,0.2121258]
[1733446633992,0.10503154,97488.0,97452.0,0.1281]
[1733446634212,0.10503154,97488.0,97461.0,0.05]
[1733446635450,0.023,97487.0,97461.0,0.05]
[1733446635932,0.023,97485.0,97461.0,0.05]
[1733446636113,0.10503154,97484.0,97461.0,0.05]
[1733446636341,0.023,97483.0,97461.0,0.05]
[1733446636552,0.10503154,97483.0,97461.0,0.05]
[1733446636756,0.023,97482.0,97461.0,0.05]
[1733446636963,0.023,97485.0,97461.0,0.05]
[1733446637141,0.024,97489.0,97461.0,0.05]
[1733446637371,0.12903154,97489.0,97461.0,0.05]
[1733446638365,0.10503154,97488.0,97459.0,0.05]
[1733446638595,0.023,97487.0,97461.0,0.05]
[1733446638829,0.023,97485.0,97452.0,0.0781]
[1733446639038,0.001,97489.0,97450.0,0.0517284]
[1733446639039,0.023,97483.0,97450.0,0.0017284]
[1733446639242,0.001,97489.0,97450.0,0.0017284]
[1733446639243,0.023,97481.0,97450.0,0.0017284]
[1733446639462,0.023,97479.0,97450.0,0.0017284]
[1733446639648,0.023,97477.0,97450.0,0.0017284]
[1733446639871,0.023,97475.0,97450.0,0.0017284]
[1733446640020,0.023,97473.0,97450.0,0.0017284]
[1733446640378,0.023,97471.0,97450.0,0.0017284]
[1733446640531,0.023,97469.0,97450.0,0.0017284]
[1733446640737,0.023,97467.0,97450.0,0.0017284]
[1733446642327,0.03693178,97467.0,97450.0,0.0017284]
[1733446644541,0.001,97479.0,97450.0,0.3017284]
[1733446644781,0.023,97477.0,97450.0,0.3017284]
[1733446645188,0.01530869,97479.0,97450.0,0.3017284]
[1733446645189,0.01530869,97479.0,97454.0,0.25]
[1733446646384,0.023,97478.0,97454.0,0.25]
[1733446647159,0.001,97469.0,97454.0,0.25]
[1733446648384,0.001,97469.0,97464.0,0.25]
[1733446648709,0.001,97469.0,97468.0,0.3]
[1733446648859,0.001,97469.0,97468.0,0.48713154]
[1733446650526,0.00032716,97479.0,97470.0,0.25]
[1733446650740,0.00032716,97479.0,97469.0,0.40503154]
[1733446651126,0.00032716,97479.0,97456.0,0.25]
[1733446651330,0.00032716,97479.0,97457.0,0.05]
[1733446651604,0.00032716,97479.0,97455.0,0.047]
[1733446651769,0.00032716,97479.0,97457.0,0.05]
[1733446652133,0.023,97478.0,97457.0,0.05]
[1733446652341,0.12803154,97478.0,97450.0,0.2517284]
[1733446652514,0.12803154,97478.0,97457.0,0.05]
[1733446653283,0.12803154,97478.0,97450.0,0.2517284]
[1733446653707,0.12803154,97478.0,97450.0,0.3017284]
[1733446653919,0.12803154,97478.0,97450.0,0.2517284]
[1733446654506,0.12803154,97478.0,97450.0,0.0017284]
[1733446654716,0.12803154,97478.0,97450.0,0.0517284]
[1733446654925,0.21981553,97478.0,97450.0,0.0017284]
[1733446655168,0.023,97476.0,97450.0,0.0017284]
[1733446655367,0.023,97474.0,97450.0,0.0017284]
[1733446655566,0.023,97471.0,97450.0,0.0017284]
[1733446655777,0.023,97469.0,97450.0,0.0017284]
[1733446655977,0.10503154,97468.0,97450.0,0.0017284]
[1733446656185,0.023,97467.0,97450.0,0.0017284]
[1733446657245,0.09178399,97472.0,97450.0,0.0017284]
[1733446657449,0.023,97472.0,97450.0,0.0017284]
[1733446657671,0.023,97472.0,97455.0,0.05]
[1733446657895,0.19803447,97479.0,97455.0,0.05]
[1733446657896,0.001,97469.0,97455.0,0.05]
[1733446658317,0.001,97469.0,97460.0,0.25]
[1733446658516,0.001,97469.0,97462.0,0.25]
[1733446658920,0.001,97469.0,97463.0,0.0768]
[1733446659294,0.0918083,97497.0,97463.0,0.0768]
[1733446659507,0.00167485,97500.0,97463.0,0.0768]
[1733446659508,0.10503154,97495.0,97463.0,0.0768]
[1733446660194,0.023,97494.0,97463.0,0.0768]
[1733446660395,0.10503154,97493.0,97463.0,0.0768]
[1733446661064,0.023,97492.0,97463.0,0.0768]
[1733446661289,0.10503154,97491.0,97463.0,0.0768]
[1733446661549,0.023,97490.0,97463.0,0.0768]
[1733446661748,0.023,97480.0,97463.0,0.0768]
[1733446662224,0.00307567,97481.0,97464.0,0.2984]
[1733446662400,0.000864,97490.0,97472.0,0.25]
[1733446663422,0.000864,97490.0,97478.0,0.05]
[1733446664027,0.000864,97490.0,97467.0,0.05]
[1733446664222,0.000864,97490.0,97467.0,0.3]
[1733446664909,0.023864,97490.0,97464.0,0.0484]
[1733446665056,0.10503154,97489.0,97464.0,0.0484]
[1733446665272,0.023,97488.0,97467.0,0.05]
[1733446665475,0.12803154,97488.0,97467.0,0.05]
[1733446666119,0.12803154,97488.0,97463.0,0.0768]
[1733446666861,0.12803154,97488.0,97467.0,0.05]
[1733446667573,0.12803154,97488.0,97463.0,0.0768]
[1733446668834,0.024,97489.0,97467.0,0.3]
[1733446669325,0.024,97489.0,97467.0,0.29994525]
[1733446671774,0.024,97489.0,97467.0,0.05]
[1733446671927,0.023,97487.0,97467.0,0.05]
[1733446672335,0.10503154,97486.0,97463.0,0.1268]
[1733446672508,0.023,97485.0,97463.0,0.1268]
[1733446672713,0.023,97485.0,97463.0,0.0768]
[1733446673366,0.023,97485.0,97463.0,0.1268]
[1733446674124,0.11481801,97485.0,97463.0,0.1268]
[1733446674695,0.11431801,97485.0,97463.0,0.1268]
[1733446675490,0.09181801,97484.0,97463.0,0.1268]
[1733446675899,0.0225,97485.0,97463.0,0.1268]
[1733446675900,0.09181801,97483.0,97463.0,0.1268]
[1733446676129,0.09181801,97484.0,97463.0,0.1268]
[1733446676336,0.09181801,97483.0,97463.0,0.1268]
[1733446676752,0.023,97482.0,97463.0,0.1268]
[1733446677163,0.11481801,97483.0,97463.0,0.1268]
[1733446677574,0.10503154,97486.0,97463.0,0.1268]
[1733446677575,0.023,97481.0,97463.0,0.0768]
[1733446677773,0.09181801,97472.0,97460.0,0.001728]
[1733446678022,0.68117253,97480.0,97460.0,0.001728]